bitfinex-derivatives/quotes_ETHF0:USTF0_20260113
["timestamp","ask_amount","ask_price","bid_price","bid_amount"]
[1768342095494,0.6387709,3245.9,3243.9,1.99085649]
[1768342095693,0.6387709,3245.9,3244.3,0.15416]
[1768342095906,3.089,3246.5,3244.4,0.15415]
[1768342096192,0.02289557,3245.8,3244.8,0.15413]
[1768342096385,0.02289557,3245.8,3245.1,0.15412]
[1768342096592,0.02289557,3245.8,3244.4,0.15761492]
[1768342096785,0.77269049,3245.6,3242.8,0.15423]
[1768342096986,0.77269049,3245.6,3243.1,0.74380486]
[1768342097196,0.02289557,3245.8,3243.7,0.15418]
[1768342097497,0.79558606,3245.8,3243.1,2.73466135]
[1768342097698,0.79558606,3245.8,3243.2,0.15421]
[1768342098000,0.77269049,3245.6,3243.2,0.15421]
[1768342098395,0.77269049,3245.6,3243.1,2.73791923]
[1768342098396,0.77269049,3245.6,3243.1,0.00325788]
[1768342098592,0.77269049,3245.6,3243.1,2.73791923]
[1768342098793,0.77269049,3245.6,3243.9,0.15417]
[1768342099594,0.77269049,3245.6,3243.2,0.15421]
[1768342100498,0.02289557,3245.8,3243.2,0.74380486]
[1768342100693,0.02289557,3245.8,3243.7,1.99085649]
[1768342101187,0.79558606,3245.8,3243.2,0.74380486]
[1768342101393,3.85969049,3245.7,3243.2,0.74380486]
[1768342101995,0.77269049,3245.7,3243.2,0.74380486]
[1768342102195,0.77269049,3245.5,3243.2,0.74380486]
[1768342102503,0.77269049,3245.5,3243.7,0.15418]
[1768342103496,0.77269049,3245.4,3243.1,0.15746788]
[1768342103799,0.77269049,3245.4,3243.5,0.15419]
[1768342104005,4.45,3245.3,3243.5,0.15419]
[1768342104306,5.22269049,3245.3,3243.5,0.15419]
[1768342104504,0.77269049,3245.2,3243.5,0.15419]
[1768342104703,0.77269049,3245.2,3243.7,0.15419]
[1768342104899,0.02289557,3245.8,3244.3,2.73466135]
[1768342105499,0.02289557,3245.8,3245.1,0.15412]
[1768342105895,0.02289557,3245.8,3244.3,0.15416]
[1768342106096,0.02289557,3245.8,3244.5,0.15415]
[1768342106394,0.02289557,3245.8,3244.6,0.15414]
[1768342106608,0.02289557,3245.8,3245.4,0.1541]
[1768342106796,0.02289557,3245.8,3245.4,0.15634214]
[1768342107103,3.10576046,3246.8,3245.5,0.1541]
[1768342107296,0.01976046,3246.8,3246.1,0.15407]
[1768342107994,0.02220965,3246.8,3246.1,0.15407]
[1768342108199,0.92623902,3246.9,3246.2,0.15406]
[1768342108606,0.05361951,3248.6,3246.9,0.15403]
[1768342108607,0.77269049,3248.2,3246.9,0.15403]
[1768342108901,3.085,3248.2,3247.4,0.15401]
[1768342109099,0.02384483,3247.9,3246.6,0.15405]
[1768342109399,0.02384483,3247.9,3245.8,0.74380486]
[1768342109605,0.02384483,3247.9,3247.1,0.15402]
[1768342109798,0.7913811,3248.9,3247.6,0.154]
[1768342109997,0.7913811,3248.9,3247.3,0.15401]
[1768342110204,0.77269049,3248.8,3245.7,0.74380486]
[1768342110396,0.77269049,3247.8,3244.8,1.99085649]
[1768342110701,6.01869061,3248.9,3245.6,0.15409]
[1768342110702,0.77269049,3247.6,3245.6,0.15409]
[1768342110902,0.77269049,3247.4,3245.5,0.1541]
[1768342111204,3.085,3248.4,3247.1,0.15402]
[1768342111499,3.085,3248.3,3246.4,0.15405]
[1768342111704,0.77269049,3248.2,3246.4,0.15405]
[1768342111898,0.77269049,3248.2,3246.1,0.00398443]
[1768342112098,0.77269049,3248.0,3246.1,0.00398443]
[1768342112305,0.77269049,3247.8,3245.6,0.1541]
[1768342112492,0.77269049,3247.8,3245.6,0.15409]
[1768342112696,40.8,3247.7,3244.8,0.74380486]
[1768342113002,5.22069049,3248.2,3246.2,0.15407]
[1768342113303,0.77269049,3248.1,3246.2,0.00375458]
[1768342113507,0.92668049,3247.9,3246.2,0.00375458]
[1768342113703,0.77269049,3247.7,3245.1,0.15412]
[1768342114005,0.77269049,3247.7,3244.8,2.73466135]
[1768342114198,3.326,3247.6,3245.7,0.15409]
[1768342114504,4.449,3248.2,3246.4,0.15405]
[1768342114703,0.77269049,3248.1,3246.4,0.1579644]
[1768342115006,0.90177178,3248.0,3246.4,0.0039144]
[1768342115505,4.449,3248.2,3244.8,2.89736602]
[1768342115506,0.90177178,3247.7,3244.8,2.89736602]
[1768342115703,0.90177178,3247.7,3245.3,0.15411]
[1768342115899,1.05577178,3247.7,3245.3,0.15411]
[1768342116096,0.90177178,3247.6,3245.3,0.15411]
[1768342116301,1.05577178,3247.6,3245.3,0.15411]
[1768342116498,1.05577178,3247.6,3245.3,0.15804476]
[1768342117006,0.15402,3247.2,3245.3,0.00393476]
[1768342117203,0.90177178,3247.1,3245.3,0.00393476]
[1768342117395,0.90177178,3246.9,3245.3,0.00393476]
[1768342117704,0.90177178,3246.7,3244.8,0.15413]
[1768342118003,0.90177178,3246.4,3244.1,0.15417]
[1768342118198,0.90177178,3246.2,3244.1,0.15417]
[1768342118395,0.90177178,3246.0,3244.1,0.15417]
[1768342118597,0.90438743,3246.0,3244.1,0.15732355]
[1768342119001,0.90438743,3246.0,3241.3,0.26668046]
[1768342119002,0.90177178,3245.5,3242.5,1.99085649]
[1768342119194,0.90177178,3245.5,3243.3,0.1542]
[1768342119402,0.00261565,3246.0,3242.5,0.15424]
[1768342119403,0.90177178,3245.1,3242.5,0.15424]
[1768342119706,1.05589178,3245.1,3242.6,0.15424]
[1768342119910,1.05589178,3245.1,3242.6,0.15717811]
[1768342120104,1.05589178,3245.1,3240.6,2.14331923]
[1768342120105,0.90177178,3244.9,3241.6,1.99085649]
[1768342120305,0.90177178,3244.9,3242.3,0.15425]
[1768342120605,0.90177178,3244.0,3241.5,0.15429]
[1768342120905,0.90177178,3244.7,3241.5,0.90650953]
[1768342121097,0.90177178,3244.5,3241.8,1.99085649]
[1768342121301,0.90177178,3244.5,3242.0,0.15427]
[1768342121498,0.90177178,3244.3,3242.0,0.15427]
[1768342122003,0.90177178,3243.6,3239.8,0.90650953]
[1768342122203,0.90177178,3243.4,3240.7,0.15433]
[1768342122595,0.90177178,3243.2,3240.7,0.15433]
[1768342122795,0.90177178,3243.2,3240.8,0.15432]
[1768342123006,0.90425169,3243.2,3240.8,0.15795648]
[1768342123198,0.90425169,3243.2,3241.1,0.15431]
[1768342123402,1.36747991,3243.2,3240.8,0.91014601]
[1768342123603,1.36747991,3243.2,3241.0,0.90650953]
[1768342124203,0.90177178,3243.1,3241.5,0.15429]
[1768342125011,3.085,3243.0,3241.8,0.15428]
[1768342125207,0.00247991,3243.2,3242.4,0.15424]
[1768342125411,0.90177178,3246.4,3243.5,0.90650953]
[1768342125615,0.90177178,3246.2,3243.5,0.90650953]
[1768342126320,0.90496546,3246.2,3243.5,0.90877565]
[1768342126709,0.90177178,3245.7,3243.5,0.00226612]
[1768342127417,0.90177178,3245.5,3243.5,0.00226612]
[1768342127807,0.90177178,3245.3,3243.5,0.00226612]
[1768342128006,3.085,3245.2,3243.5,0.00226612]
[1768342128312,1.367,3245.1,3243.5,0.00226612]
[1768342128502,1.367,3245.1,3243.6,0.15419]
[1768342128904,1.367,3245.1,3243.9,0.15417]
[1768342132309,0.02188231,3251.0,3248.2,0.15397]
[1768342132511,0.02188231,3251.0,3248.4,0.15396]
[1768342132710,0.02188231,3251.0,3248.6,0.90650953]
[1768342132910,0.02188231,3251.0,3248.7,0.38976033]
[1768342133111,0.02188231,3251.0,3249.4,0.15391]
[1768342133310,0.02490839,3251.0,3249.6,0.90650953]
[1768342133514,0.02113819,3252.0,3250.3,0.15387]
[1768342133704,0.02113819,3252.0,3250.4,0.54362033]
[1768342133909,3.084,3254.8,3250.6,1.06036953]
[1768342134211,0.01990134,3258.2,3253.9,0.90650953]
[1768342134411,0.27796559,3258.8,3255.6,0.90650953]
[1768342134707,3.084,3261.0,3255.8,0.90650953]
[1768342134708,1.17624473,3259.6,3255.8,0.90650953]
[1768342135016,0.9216696,3261.6,3257.0,0.90650953]
[1768342135309,0.9216696,3261.6,3255.9,6.76202556]
[1768342135310,0.9216696,3261.6,3257.2,0.90650953]
[1768342135511,7.0110788,3265.9,3259.5,0.90650953]
[1768342135711,6.10930702,3265.9,3259.6,0.90650953]
[1768342135911,0.90177178,3266.7,3260.1,0.90650953]
[1768342136112,0.90177178,3265.3,3260.5,0.90650953]
[1768342136310,0.90177178,3265.3,3260.7,0.90355401]
[1768342136503,0.04294515,3265.4,3261.9,2.37322943]
[1768342136703,0.04294515,3265.4,3262.1,0.90355401]
[1768342136908,0.01854259,3266.6,3262.5,0.90355401]
[1768342137105,0.30598,3269.1,3262.0,3.25833165]
[1768342137106,0.92161173,3268.6,3263.5,0.90355401]
[1768342137311,0.92161173,3268.6,3262.7,0.90650953]
[1768342137312,0.90177178,3267.6,3262.7,0.90650953]
[1768342137507,0.90177178,3267.1,3262.7,0.00369967]
[1768342137707,0.90177178,3266.3,3261.1,0.90650953]
[1768342137909,0.90177178,3265.2,3261.1,0.90650953]
[1768342138106,0.90177178,3264.9,3261.2,3.55157165]
[1768342138311,0.90177178,3263.1,3261.2,2.97791246]
[1768342138511,0.90177178,3261.3,3257.6,0.67402794]
[1768342138707,0.90177178,3261.1,3256.8,0.67402794]
[1768342138911,0.90177178,3260.3,3254.9,0.67402794]
[1768342139109,0.90177178,3260.1,3255.3,0.67402794]
[1768342139311,0.90177178,3260.1,3255.4,3.73923396]
[1768342139613,0.90177178,3258.9,3255.6,0.66123396]
[1768342139817,1.31093679,3260.0,3258.1,0.66123396]
[1768342140015,1.31093679,3259.9,3257.3,0.66123396]
[1768342140218,0.90177178,3262.5,3258.6,2.37322943]
[1768342140513,0.90177178,3262.5,3258.1,2.63875749]
[1768342140514,0.90177178,3262.4,3258.1,2.63875749]
[1768342140714,0.90177178,3261.4,3258.1,0.00215406]
[1768342140917,0.90177178,3261.3,3258.1,0.00215406]
[1768342141216,0.90177178,3261.2,3258.1,0.00215406]
[1768342141515,0.00276441,3262.4,3260.0,0.70373816]
[1768342141720,0.00276441,3262.4,3259.9,2.37322943]
[1768342141721,0.00276441,3262.4,3260.2,0.70373816]
[1768342142018,0.90177178,3264.3,3260.3,4.267]
[1768342142221,0.90177178,3264.3,3260.9,3.27973896]
[1768342142418,0.90177178,3264.3,3260.0,0.90650953]
[1768342142723,0.90177178,3264.1,3258.9,0.90650953]
[1768342142909,0.04220976,3262.2,3259.4,0.00242319]
[1768342143220,0.04220976,3262.2,3259.5,2.37322943]
[1768342143419,0.04220976,3262.2,3259.5,0.90650953]
[1768342143615,0.90177178,3264.5,3261.1,0.15336]
[1768342143819,0.90177178,3264.1,3259.8,0.90650953]
[1768342144122,3.075,3264.2,3259.8,0.90650953]
[1768342144123,0.90177178,3263.9,3259.8,0.90650953]
[1768342144516,0.90177178,3263.9,3259.4,0.00242319]
[1768342144711,0.90177178,3263.9,3260.7,2.37322943]
[1768342144924,0.90177178,3263.9,3259.9,3.45952227]
[1768342145213,0.00281065,3264.3,3262.1,1.02311995]
[1768342145422,0.00281065,3264.3,3262.2,3.074]
[1768342145619,1.11729903,3266.4,3263.0,1.02311995]
[1768342145823,1.11729903,3267.3,3264.2,0.15322]
[1768342146113,1.11729903,3267.3,3264.8,0.15319]
[1768342146314,4.435,3268.3,3264.8,0.15319]
[1768342146315,1.11729903,3268.1,3264.8,0.15319]
[1768342146520,1.11729903,3268.1,3264.8,6.15319]
[1768342146717,0.01983995,3268.6,3265.0,1.06262033]
[1768342146920,0.01983995,3268.6,3265.9,1.06262033]
[1768342147112,1.11729903,3268.5,3265.3,0.15316]
[1768342147311,0.45399448,3266.9,3262.8,1.06262033]
[1768342147518,3.072,3266.8,3263.0,1.06262033]
[1768342147719,3.072,3266.9,3263.6,1.06262033]
[1768342147917,3.072,3266.9,3263.8,1.06262033]
[1768342148123,3.072,3266.9,3263.8,1.21586033]
[1768342148316,0.50325527,3266.5,3263.8,0.00339778]
[1768342148618,3.53369413,3266.4,3261.9,1.06262033]
[1768342148820,3.53369413,3266.4,3264.3,1.0204558]
[1768342149017,0.00250976,3266.9,3264.0,3.071]
[1768342149219,3.071,3269.2,3264.8,2.37322943]
[1768342149516,2.76471605,3270.2,3264.1,3.071]
[1768342149517,6.44e-06,3269.7,3269.6,0.15296]
[1768342149719,1.52750282,3273.4,3272.3,0.15284]
[1768342149917,0.0212154,3274.9,3272.3,0.15284]
[1768342150118,0.0212154,3274.9,3272.4,6.0]
[1768342150422,0.02358609,3274.9,3272.4,0.00376169]
[1768342150623,0.02358609,3274.9,3272.6,0.15282]
[1768342150823,0.01712177,3275.6,3272.4,0.00376169]
[1768342150824,0.01712177,3275.6,3273.5,1.06262033]
[1768342151028,1.44442059,3278.0,3274.7,1.06262033]
[1768342151216,1.11729903,3280.9,3276.1,1.06262033]
[1768342151422,1.11729903,3281.9,3276.8,1.06262033]
[1768342151617,1.11729903,3278.8,3276.3,0.27297087]
[1768342151915,0.02148125,3279.0,3277.0,1.06262033]
[1768342152121,0.02148125,3279.0,3277.0,0.00243378]
[1768342152321,1.13878028,3279.0,3275.0,3.22884476]
[1768342152525,1.13878028,3279.0,3273.9,2.48343257]
[1768342152526,1.11729903,3278.8,3272.4,3.067]
[1768342152720,1.11729903,3278.6,3272.0,3.21985]
[1768342152923,3.066,3278.5,3273.2,3.38163476]
[1768342153128,3.066,3278.5,3273.3,0.15279]
[1768342153323,1.11729903,3278.4,3273.4,2.37322943]
[1768342153628,1.11729903,3278.4,3273.4,3.25856857]
[1768342153834,1.11729903,3278.4,3273.3,0.00305873]
[1768342154139,0.04205519,3275.9,3273.4,4.12762033]
[1768342154326,0.04419333,3275.9,3273.5,1.06262033]
[1768342154824,1.11729903,3275.7,3272.5,1.06262033]
[1768342155027,1.11729903,3275.5,3271.5,1.06262033]
[1768342155224,0.04205519,3273.5,3270.6,1.06262033]
[1768342156023,1.11729903,3273.4,3269.5,1.06262033]
[1768342156218,0.04205519,3271.6,3269.1,2.37322943]
[1768342156420,0.04205519,3271.6,3269.8,1.5023019]
[1768342156627,1.11729903,3271.4,3269.8,1.5023019]
[1768342156827,40.8,3271.3,3267.8,3.38993242]
[1768342157033,1.11729903,3271.4,3267.9,1.01670299]
[1768342157227,1.11729903,3271.4,3268.1,1.01670299]
[1768342157419,0.04205519,3269.7,3268.1,1.01670299]
[1768342157625,3.063,3271.8,3268.3,1.01670299]
[1768342158128,3.063,3271.8,3268.4,1.01670299]
[1768342158330,1.05477355,3271.7,3267.8,2.37565343]
[1768342158533,1.05477355,3271.0,3267.8,2.37565343]
[1768342158835,1.05477355,3271.0,3267.8,0.002424]
[1768342159034,1.05477355,3270.3,3265.4,1.01670299]
[1768342159229,1.05477355,3270.1,3265.4,1.01670299]
[1768342159437,1.05477355,3270.1,3265.2,1.84001282]
[1768342159438,1.05477355,3269.3,3265.2,1.84001282]
[1768342159731,2.37322943,3270.1,3265.2,1.84001282]
[1768342159732,1.05477355,3269.1,3265.2,1.84001282]
[1768342159942,1.05477355,3268.9,3265.2,1.84001282]
[1768342160238,1.00227355,3268.7,3265.2,1.84286004]
[1768342160428,3.36791729,3268.8,3266.6,1.01670299]
[1768342160632,0.00317611,3269.1,3266.6,1.01670299]
[1768342160833,0.00317611,3269.1,3266.7,0.1531]
[1768342161329,0.00317611,3269.1,3267.2,0.15308]
[1768342161530,3.063,3270.9,3267.9,1.16974299]
[1768342161931,40.8,3270.8,3267.9,1.16974299]
[1768342162237,3.063,3270.9,3268.0,1.01670299]
[1768342162429,3.0653691,3270.9,3268.0,1.02058827]
[1768342162632,3.0653691,3270.9,3268.5,0.15301]
[1768342162831,0.0023691,3270.9,3268.7,0.15301]
[1768342163427,0.0023691,3270.9,3269.8,0.15295]
[1768342163633,4.421,3272.6,3269.8,0.15295]
[1768342163940,4.11677355,3272.6,3269.8,0.15295]
[1768342164142,1.05477355,3272.4,3267.6,2.37322943]
[1768342164439,6.0,3272.5,3270.2,1.01670299]
[1768342164440,3.43462709,3272.5,3270.2,1.01670299]
[1768342164640,3.43693103,3272.5,3271.2,0.15289]
[1768342164944,3.43693103,3272.5,3271.2,0.1566665]
[1768342164945,0.00230394,3272.5,3271.2,0.1566665]
[1768342165944,0.00230394,3272.5,3271.4,1.5023019]
[1768342166356,2.41277355,3273.6,3271.2,0.0037765]
[1768342166536,1.05477355,3273.5,3271.2,0.0037765]
[1768342166838,1.05477355,3273.5,3268.7,2.37322943]
[1768342166839,0.15282,3272.8,3269.7,0.15296]
[1768342167034,1.05477355,3272.2,3268.5,1.01670299]
[1768342167230,1.05477355,3272.0,3268.9,0.153]
[1768342167431,3.062,3272.1,3268.9,0.153]
[1768342167432,1.05477355,3271.8,3268.9,0.153]
[1768342167844,1.20766355,3271.2,3268.9,0.00373684]
[1768342168038,4.11918664,3271.8,3268.9,0.00373684]
[1768342168338,1.20767355,3271.0,3268.1,0.15303]
[1768342168541,0.15292,3270.6,3266.7,1.01670299]
[1768342168728,1.05477355,3270.2,3266.1,0.15313]
[1768342168932,1.20773355,3269.7,3266.3,0.15312]
[1768342169133,1.05477355,3268.7,3265.2,1.84001282]
[1768342169333,1.05477355,3268.5,3265.6,0.15315]
[1768342169529,0.0034326,3268.7,3266.4,1.01670299]
[1768342169730,0.0034326,3268.7,3267.4,0.15307]
[1768342170332,0.0034326,3268.7,3266.4,1.01670299]
[1768342170537,0.0034326,3268.7,3267.4,1.5023019]
[1768342170739,0.0034326,3268.7,3266.4,1.01670299]
[1768342170740,0.0034326,3268.7,3267.1,0.15308]
[1768342170931,0.0034326,3268.7,3266.1,0.15313]
[1768342171130,0.0034326,3268.7,3267.2,0.15308]
[1768342171530,0.0034326,3268.7,3265.7,1.01670299]
[1768342171531,0.0034326,3268.7,3266.1,0.15313]
[1768342171730,6.0034326,3268.7,3266.1,0.15313]
[1768342171954,0.0034326,3268.7,3266.2,1.5023019]
[1768342172240,0.0034326,3268.7,3266.9,0.15309]
[1768342172838,6.0034326,3268.7,3266.9,0.15309]
[1768342173041,6.0034326,3268.7,3265.6,1.01670299]
[1768342173042,6.0034326,3268.7,3265.9,0.15314]
[1768342173246,1.05477355,3268.6,3265.9,0.15314]
[1768342173538,1.05477355,3268.4,3265.9,0.15314]
[1768342174136,1.20779355,3268.4,3265.9,0.15314]
[1768342174533,1.05477355,3268.4,3265.3,1.01670299]
[1768342174846,1.359,3268.5,3266.5,0.15311]
[1768342175549,7.359,3268.5,3265.5,1.01670299]
[1768342175739,1.359,3268.5,3265.7,1.5023019]
[1768342175934,6.0,3268.4,3266.4,0.15311]
[1768342176140,0.15303,3268.2,3265.5,1.16985299]
[1768342176334,3.21504,3268.1,3264.6,0.89324745]
[1768342176745,0.15305,3267.9,3265.0,0.15318]
[1768342176942,0.93170871,3267.8,3265.0,0.15318]
[1768342177247,0.15309,3266.9,3264.1,0.15322]
[1768342177439,4.422,3266.8,3265.2,0.91628169]
[1768342177640,4.422,3266.8,3265.2,0.4750362]
[1768342177949,6.0,3266.7,3265.2,0.4750362]
[1768342178340,4.422,3266.8,3265.4,0.15316]
[1768342178536,4.422,3266.8,3265.3,0.89324745]
[1768342178741,3.0654326,3268.7,3266.6,0.89324745]
[1768342179045,3.0654326,3268.7,3267.5,0.15306]
[1768342179343,3.0654326,3268.7,3267.5,0.15554825]
[1768342179549,0.0034326,3268.7,3267.8,0.15305]
[1768342179740,0.0034326,3268.7,3267.5,0.00248825]
[1768342179940,6.0,3268.6,3267.5,0.00248825]
[1768342180140,0.0034326,3268.7,3267.5,0.00248825]
[1768342180445,0.0034326,3268.7,3267.5,1.65785015]
[1768342180645,6.0034326,3268.7,3267.5,0.00248825]
[1768342180842,0.0034326,3268.7,3267.8,0.15305]
[1768342181044,3.063,3271.1,3268.4,0.89324745]
[1768342181242,3.063,3271.1,3268.6,0.89324745]
[1768342181553,3.063,3271.1,3269.5,0.15296]
[1768342181853,2.37322943,3278.6,3274.7,0.89324745]
[1768342182052,1.7624607,3278.0,3274.9,0.89324745]
[1768342182239,1.7624607,3278.0,3275.6,0.89324745]
[1768342182446,1.7624607,3278.0,3275.8,0.89324745]
[1768342182736,1.7624607,3278.0,3275.7,1.5023019]
[1768342182737,1.7624607,3278.0,3276.0,2.39554935]
[1768342182941,1.7624607,3278.0,3276.1,0.89324745]
[1768342183146,1.7624607,3278.0,3276.4,0.89324745]
[1768342183539,1.7624607,3278.0,3274.7,0.00249119]
[1768342183745,1.7624607,3278.0,3275.1,0.89324745]
[1768342183947,7.7624607,3278.0,3275.1,0.89324745]
[1768342184147,1.7624607,3278.0,3275.1,0.89324745]
[1768342184738,8.37322943,3277.9,3274.7,0.00249119]
[1768342184938,2.37322943,3277.0,3274.7,0.00249119]
[1768342185240,2.37322943,3277.0,3273.2,0.89324745]
[1768342185241,29.35279854,3276.9,3273.2,0.89324745]
[1768342185441,3.50079854,3276.9,3275.4,0.89324745]
[1768342185641,1.7624607,3278.0,3275.4,0.89324745]
[1768342185842,1.7624607,3278.0,3276.3,0.15265]
[1768342186054,1.7624607,3278.0,3276.4,0.89324745]
[1768342186346,1.7624607,3278.0,3276.5,0.89324745]
[1768342186848,1.7624607,3278.0,3276.5,1.04588745]
[1768342187144,1.7624607,3278.0,3276.6,0.89324745]
[1768342187548,0.2601588,3278.0,3276.6,0.89324745]
[1768342187747,0.2601588,3278.0,3276.6,1.04588745]
[1768342188340,0.2601588,3278.0,3277.0,0.89324745]
[1768342189738,0.15249,3279.9,3277.2,0.89324745]
[1768342189739,1.362,3279.9,3277.2,0.89324745]
[1768342190146,0.02056658,3280.1,3278.2,0.89324745]
[1768342190650,6.02412055,3280.1,3278.2,0.89324745]
[1768342190854,3.08212055,3280.1,3278.2,0.89324745]
[1768342191054,1.362,3280.0,3278.2,0.89324745]
[1768342191257,0.02412055,3280.1,3277.1,0.89324745]
[1768342191450,3.057,3280.0,3277.1,0.89324745]
[1768342191645,4.994353,3280.0,3277.1,0.89324745]
[1768342191847,9.057,3280.0,3277.1,0.89324745]
[1768342192151,4.419,3279.9,3277.1,0.89324745]
[1768342192358,6.356353,3279.9,3277.1,0.89324745]
[1768342192547,6.15249,3279.8,3277.0,0.15262]
[1768342192743,4.42,3279.7,3277.1,0.89324745]
[1768342192944,0.0420156,3278.4,3277.1,0.89324745]
[1768342193454,0.0420156,3278.4,3277.1,0.87435915]
[1768342194155,0.0420156,3277.8,3277.1,0.87435915]
[1768342194352,0.04537204,3277.8,3276.3,0.00276783]
[1768342195154,0.0420156,3277.1,3276.3,0.00276783]
[1768342196151,0.15255,3278.4,3276.3,0.00276783]
[1768342196152,1.74407228,3282.7,3280.2,0.15247]
[1768342196452,1.42742656,3282.7,3280.9,0.89324745]
[1768342196657,1.42742656,3282.7,3282.1,0.15238]
[1768342196957,3.056,3284.7,3282.1,0.15238]
[1768342196958,0.26682975,3287.4,3284.8,0.89324745]
[1768342197248,0.26682975,3287.4,3285.9,0.89324745]
[1768342197249,0.00271358,3287.4,3285.9,0.89324745]
[1768342197454,0.21723263,3288.9,3285.9,0.89324745]
[1768342197455,3.055,3288.7,3286.0,5.91954809]
[1768342197650,0.68876659,3292.1,3287.6,0.89324745]
[1768342197849,3.055,3292.1,3287.8,0.89324745]
[1768342198052,1.361,3292.8,3288.4,0.15209]
[1768342198248,2.37476087,3293.3,3288.7,0.89324745]
[1768342198448,2.37476087,3293.3,3289.3,0.89324745]
[1768342198449,0.02178754,3291.5,3289.3,0.89324745]
[1768342198653,0.02178754,3291.5,3289.3,0.64314138]
[1768342198954,0.93170871,3294.8,3289.4,6.0]
[1768342199156,0.93170871,3295.4,3289.4,2.98386856]
[1768342199361,0.93170871,3294.4,3289.5,5.37938333]
[1768342199559,0.01806335,3295.7,3291.7,0.15194]
[1768342199856,0.21306004,3298.6,3293.9,0.15183]
[1768342200052,0.21306004,3298.6,3294.1,1.937353]
[1768342200252,0.21306004,3298.6,3294.2,3.052]
[1768342200453,0.21306004,3298.6,3294.2,3.36070943]
[1768342200652,0.21306004,3298.6,3291.0,0.30394]
[1768342200653,1.937353,3295.8,3291.0,0.30394]
[1768342200861,1.937353,3295.8,3290.1,0.15201]
[1768342200862,0.93170871,3296.0,3290.0,3.051]
[1768342201053,0.93170871,3295.8,3291.0,0.24251472]
[1768342201351,1.937353,3293.8,3291.0,0.24251472]
[1768342201561,0.93170871,3293.8,3290.0,0.00330074]
[1768342201763,0.93170871,3294.7,3290.0,0.00330074]
[1768342202055,1.937353,3292.9,3290.1,3.2489655]
[1768342202254,0.00354362,3292.9,3290.0,0.00330074]
[1768342202445,1.937353,3291.7,3290.0,0.00330074]
[1768342202649,1.937353,3292.1,3290.0,0.00330074]
[1768342202856,0.00354362,3292.9,3290.4,0.89324745]
[1768342203453,1.937353,3292.2,3290.0,0.00330074]
[1768342203756,3.048,3292.3,3290.0,0.00330074]
[1768342203960,1.937353,3292.2,3290.0,0.00330074]
[1768342204556,3.048,3292.6,3290.0,0.00330074]
[1768342204761,0.00354362,3292.9,3290.1,3.048]
[1768342205056,0.68938253,3298.1,3293.0,0.68401391]
[1768342205259,1.937353,3298.3,3294.5,0.68401391]
[1768342205557,0.21306004,3298.6,3296.2,0.15173]
[1768342205760,1.56758552,3300.0,3298.0,0.02284744]
[1768342205949,1.937353,3299.9,3296.5,0.15172]
[1768342206156,0.02055062,3300.9,3298.6,0.02284744]
[1768342206351,1.065,3306.3,3298.5,0.15162]
[1768342206352,1.937353,3303.4,3299.3,0.01336848]
[1768342206562,6.55e-06,3301.9,3299.3,0.15159]
[1768342206759,0.68938253,3303.4,3299.5,0.15158]
[1768342206959,0.68938253,3300.3,3299.5,0.00242566]
[1768342207259,0.68938253,3300.1,3295.3,0.21096078]
[1768342207459,0.15154,3300.3,3290.8,0.15198]
[1768342207460,0.68938253,3296.5,3290.8,0.15198]
[1768342207755,0.68938253,3294.6,3290.8,0.24336258]
[1768342207961,0.68938253,3294.6,3290.9,3.26045213]
[1768342208152,0.69272898,3294.6,3290.9,0.00367826]
[1768342208353,0.68938253,3293.9,3290.9,0.00367826]
[1768342208554,0.68938253,3293.7,3290.9,0.00367826]
[1768342208754,0.68938253,3293.3,3290.9,0.00367826]
[1768342209057,0.68938253,3293.3,3287.3,0.15214]
[1768342209058,0.68938253,3291.7,3287.3,0.15214]
[1768342209259,0.68938253,3291.0,3287.4,0.30428]
[1768342209459,0.68938253,3293.1,3290.3,1.937353]
[1768342209661,0.68938253,3294.1,3289.3,0.15205]
[1768342209959,3.40450938,3295.7,3291.0,0.50590334]
[1768342210166,0.68938253,3297.4,3292.6,0.15189]
[1768342210358,0.68938253,3296.4,3291.7,3.044]
[1768342210563,0.68938253,3295.6,3292.2,0.15191]
[1768342210761,0.68938253,3295.6,3288.1,6.14879449]
[1768342210762,0.68938253,3294.8,3289.7,0.15203]
[1768342210962,0.68938253,3292.6,3286.2,0.15219]
[1768342211263,0.68938253,3290.4,3286.4,1.937353]
[1768342211568,0.68938253,3290.3,3286.3,1.937353]
[1768342211764,0.15204,3289.5,3284.4,0.55937449]
[1768342211964,0.68938253,3290.0,3281.9,21.45639]
[1768342211965,0.68938253,3289.4,3284.6,0.24674179]
[1768342212260,0.68938253,3289.4,3285.5,0.21826589]
[1768342212463,0.68938253,3294.1,3289.0,1.937353]
[1768342212664,1.32385008,3293.0,3290.1,1.937353]
[1768342212865,1.937353,3295.5,3291.2,1.937353]
[1768342213054,0.68938253,3293.7,3290.2,0.152]
[1768342213256,0.68938253,3293.7,3289.4,0.58176334]
[1768342213465,0.68938253,3293.5,3290.1,2.089363]
[1768342213667,0.68938253,3293.3,3289.4,0.00295491]
[1768342213864,0.84124253,3293.3,3289.6,1.937353]
[1768342214061,0.84124253,3293.3,3289.4,0.00295491]
[1768342214256,0.68938253,3292.3,3289.4,0.00295491]
[1768342214570,0.70178261,3290.9,3289.4,0.00295491]
[1768342214771,0.70178261,3290.9,3286.7,2.089523]
[1768342214967,0.70178261,3290.9,3285.5,0.21515929]
[1768342214968,0.68938253,3290.2,3285.5,0.21515929]
[1768342215154,0.68938253,3289.5,3287.2,1.937353]
[1768342215354,0.68938253,3289.5,3285.5,0.21515929]
[1768342215355,0.02084542,3288.4,3286.9,0.15216]
[1768342215557,0.68938253,3291.3,3287.9,1.937353]
[1768342215762,0.68938253,3291.3,3286.8,3.043]
[1768342215763,0.68938253,3290.9,3288.2,1.937353]
[1768342215965,0.68938253,3290.8,3287.9,1.937353]
[1768342216266,0.68938253,3290.8,3288.7,0.15207]
[1768342216474,0.00376882,3291.3,3287.1,0.15215]
[1768342216475,0.00376882,3291.3,3288.8,1.937353]
[1768342217074,0.65251631,3294.1,3290.6,1.937353]
[1768342217367,0.15165,3298.0,3293.4,1.937353]
[1768342217368,0.65251631,3296.3,3293.4,1.937353]
[1768342217569,0.65251631,3296.3,3293.9,0.15183]
[1768342217873,0.65251631,3297.1,3293.2,0.15186]
[1768342218077,0.65251631,3297.3,3293.9,0.15184]
[1768342218271,0.00265593,3297.1,3294.6,1.937353]
[1768342218567,0.65251631,3298.4,3295.8,1.937353]
[1768342218759,0.65251631,3298.4,3296.8,0.1517]
[1768342219158,0.65251631,3298.4,3295.0,1.937353]